bitfinex/quotes_ETHUSD_20240607
["timestamp","ask_amount","ask_price","bid_price","bid_amount"]
[1717744568981,2.61723,3820.9,3820.8,1.98209489]
[1717744574301,2.61723,3820.9,3820.8,1.43580996]
[1717744577396,2.61723,3820.9,3820.8,4.07456182]
[1717744579287,2.61723,3820.9,3820.8,3.25471437]
[1717744581171,2.61723,3820.9,3820.8,4.3516165]
[1717744582210,3.16723,3820.9,3820.8,4.3516165]
[1717744583338,3.16723,3820.9,3820.8,3.25471526]
[1717744586493,3.16723,3820.9,3820.8,4.62520344]
[1717744590286,3.16723,3820.9,3820.8,3.25471526]
[1717744591921,3.16723,3820.9,3820.8,4.62520344]
[1717744596387,2.61723,3820.9,3820.8,4.62520344]
[1717744596799,2.61723,3820.9,3820.8,5.5283503]
[1717744604122,3.96250428,3821.4,3820.8,5.5283503]
[1717744604324,3.96250428,3821.4,3821.2,1.09683327]
[1717744604325,2.6169,3821.4,3821.2,1.09683327]
[1717744604502,2.6169,3821.4,3821.3,3.18308293]
[1717744605026,2.6169,3821.4,3821.3,3.25457504]
[1717744605524,2.6169,3821.4,3821.3,3.25446976]
[1717744607051,3.1669,3821.4,3821.3,3.25446976]
[1717744607346,3.1669,3821.4,3821.3,4.07711997]
[1717744607900,3.1669,3821.4,3821.3,3.25449732]
[1717744608430,3.1669,3821.4,3821.3,4.0771273]
[1717744608632,2.6169,3821.4,3821.3,4.0771273]
[1717744609122,2.6169,3821.4,3821.3,4.62553507]
[1717744610537,2.6169,3821.4,3821.3,3.25449732]
[1717744613505,2.61614,3822.5,3821.3,3.25449732]
[1717744613506,2.61648,3822.0,3821.4,2.3521]
[1717744613741,2.492,3822.3,3821.6,1.3697375]
[1717744614068,5.72708,3822.6,3821.7,3.63692651]
[1717744614199,5.72708,3822.6,3822.4,0.82075313]
[1717744614401,4.94708,3822.6,3822.5,1.3641008]
[1717744614656,4.94708,3822.6,3822.5,4.00297081]
[1717744614832,2.61608,3822.6,3822.5,4.07399131]
[1717744615251,2.61608,3822.6,3822.5,1.98193923]
[1717744615847,2.61608,3822.6,3822.5,1.4351213]
[1717744616352,2.61608,3822.6,3822.5,1.98166078]
[1717744616667,3.16608,3822.6,3822.5,1.98166078]
[1717744617370,3.94608,3822.6,3822.5,1.4351213]
[1717744619374,3.94608,3822.6,3822.5,0.0710205]
[1717744619730,3.16608,3822.6,3822.5,0.0706541]
[1717744619969,3.16608,3822.6,3822.5,1.36363249]
[1717744620262,3.16608,3822.6,3822.5,1.43428659]
[1717744620768,2.61608,3822.6,3822.5,1.43428659]
[1717744621864,2.61608,3822.6,3822.5,1.43423739]
[1717744622361,2.61608,3822.6,3822.5,0.0706541]
[1717744622535,2.61608,3822.6,3822.3,0.54653948]
[1717744622738,2.61608,3822.6,3822.4,1.43423825]
[1717744623031,2.61608,3822.6,3822.4,0.0706541]
[1717744623974,2.61608,3822.6,3822.2,0.54653948]
[1717744624175,2.61608,3822.6,3822.3,1.43423981]
[1717744624358,3.39615,3822.4,3822.3,0.0706541]
[1717744624565,3.94615,3822.4,3822.3,1.36363632]
[1717744624868,3.94615,3822.4,3822.3,0.0706541]
[1717744625073,3.94615,3822.4,3822.1,0.54653948]
[1717744625270,3.16615,3822.4,3822.2,1.36366239]
[1717744625473,3.16615,3822.4,3822.2,0.0706541]
[1717744625629,3.16615,3822.4,3822.0,0.54653948]
[1717744625955,3.16615,3822.4,3822.3,0.0706541]
[1717744626155,3.16615,3822.4,3822.1,0.54653948]
[1717744626511,3.16615,3822.4,3822.2,1.36364633]
[1717744626658,3.16615,3822.4,3822.2,0.0706541]
[1717744627991,3.94615,3822.4,3822.2,0.0706541]
[1717744628409,3.94615,3822.4,3822.0,0.54653948]
[1717744628605,3.94615,3822.4,3822.3,0.07059484]
[1717744628891,3.94615,3822.4,3822.0,0.54653948]
[1717744629096,3.94615,3822.4,3822.3,0.07059484]
[1717744629288,3.94615,3822.4,3822.0,0.54653948]
[1717744629451,3.94615,3822.4,3821.6,3.51164072]
[1717744629452,3.94615,3822.4,3822.3,0.07059484]
[1717744629647,3.94615,3822.4,3821.9,0.54653948]
[1717744629878,3.94615,3822.4,3822.3,0.07059484]
[1717744630093,3.94615,3822.4,3821.9,0.54653948]
[1717744630263,3.94615,3822.4,3822.3,0.07059484]
[1717744630464,2.61615,3822.4,3822.0,0.54653948]
[1717744630669,2.61615,3822.4,3822.3,0.07059484]
[1717744630889,2.61615,3822.4,3822.0,0.54653948]
[1717744631070,2.61615,3822.4,3822.3,0.07059484]
[1717744631270,2.61615,3822.4,3822.0,0.54653948]
[1717744631487,2.61615,3822.4,3822.3,0.07059484]
[1717744631995,2.61615,3822.4,3822.0,3.22476874]
[1717744632166,2.61615,3822.4,3822.3,0.07043054]
[1717744632883,2.61615,3822.4,3822.1,0.54653948]
[1717744633087,2.61615,3822.4,3822.3,0.07043054]
[1717744633288,2.61615,3822.4,3822.1,0.54653948]
[1717744633454,2.61615,3822.4,3822.3,0.07043054]
[1717744633657,2.61615,3822.4,3822.3,1.43403565]
[1717744633892,2.61615,3822.4,3822.3,1.36360511]
[1717744634058,2.61615,3822.4,3822.3,1.43403565]
[1717744634817,2.61589,3822.8,3822.3,1.43403565]
[1717744634962,2.61589,3822.8,3822.4,1.36360511]
[1717744635160,2.61589,3822.8,3822.3,0.31914124]
[1717744635366,2.61589,3822.8,3822.4,1.43397095]
[1717744635560,2.61589,3822.8,3822.4,0.07043054]
[1717744635988,2.61589,3822.8,3822.5,1.15222799]
[1717744636165,2.61589,3822.8,3822.4,0.54653948]
[1717744636366,2.61589,3822.8,3822.6,0.54653948]
[1717744636757,2.61589,3822.8,3822.7,0.07043054]
[1717744637194,2.61589,3822.8,3822.5,0.54653948]
[1717744637414,10.434,3823.2,3822.6,3.89457002]
[1717744637415,7.37,3823.2,3822.6,3.89457002]
[1717744637562,7.37,3823.2,3822.7,0.54653948]
[1717744637769,7.37,3823.2,3822.9,0.54653948]
[1717744638206,7.37,3823.2,3823.0,0.07043054]
[1717744638983,7.37,3823.2,3822.8,0.54653948]
[1717744640480,2.61558,3823.3,3822.8,0.54653948]
[1717744642202,0.00544979,3823.7,3823.0,0.54653948]
[1717744642405,0.00544979,3823.7,3822.9,0.82075313]
[1717744642406,0.00544979,3823.7,3823.5,0.54414746]
[1717744642722,0.00544979,3823.7,3823.6,0.54414746]
[1717744642891,0.00544979,3823.7,3823.3,3.69204969]
[1717744642892,0.00544979,3823.7,3823.5,0.54414746]
[1717744643221,0.00544979,3823.7,3823.3,0.54414746]
[1717744643222,0.78,3823.6,3823.3,0.54414746]
[1717744643377,0.78,3823.6,3823.1,0.82075313]
[1717744643378,0.78,3823.6,3823.0,0.54414746]
[1717744643769,0.78,3823.6,3823.1,0.06320817]
[1717744644226,0.78,3823.6,3822.9,0.54414746]
[1717744644397,0.78,3823.4,3822.8,0.54414746]
[1717744644607,0.55,3823.3,3822.8,0.54414746]
[1717744644908,0.55,3823.3,3822.7,0.54414746]
[1717744645088,0.55,3823.3,3822.9,0.06320817]
[1717744645292,0.55,3823.3,3822.7,0.54414746]
[1717744645498,0.55,3823.3,3823.0,0.06320817]
[1717744645688,0.55,3823.3,3822.7,0.54414746]
[1717744645870,0.55,3823.3,3823.1,0.06320817]
[1717744646210,0.55,3823.4,3822.9,1.36331244]
[1717744646375,0.55,3823.4,3823.2,0.06320817]
[1717744646735,0.55,3823.4,3822.9,1.36331244]
[1717744646736,0.00523247,3823.5,3822.9,2.4797]
[1717744646893,0.00523247,3823.5,3823.3,0.06095204]
[1717744647095,0.00523247,3823.5,3823.1,0.54414746]
[1717744647279,0.00523247,3823.5,3823.4,0.06093055]
[1717744647480,0.00523247,3823.5,3823.4,0.19682424]
[1717744647673,0.00523247,3823.5,3823.4,0.06093055]
[1717744647878,0.00523247,3823.5,3823.1,0.54414746]
[1717744648136,0.00523247,3823.5,3823.4,0.06093055]
[1717744648278,0.00523247,3823.5,3823.1,0.54414746]
[1717744648478,0.00523247,3823.5,3823.4,0.06093055]
[1717744648701,0.00523247,3823.5,3823.3,1.36318887]
[1717744648897,0.00523247,3823.5,3823.1,0.54414746]
[1717744648898,0.00523247,3823.5,3823.4,0.06093055]
[1717744649111,0.00523247,3823.5,3823.2,1.36320261]
[1717744649302,0.00523247,3823.5,3823.0,0.54414746]
[1717744649611,0.00523247,3823.5,3823.1,1.74766141]
[1717744649814,0.00523247,3823.5,3823.2,1.36320135]
[1717744649984,0.00523247,3823.5,3823.1,0.92860752]
[1717744650307,0.00523247,3823.5,3823.2,1.96827393]
[1717744650513,0.00523247,3823.5,3823.3,1.36319592]
[1717744650715,0.00523247,3823.5,3823.4,1.36319592]
[1717744650913,0.00523247,3823.5,3823.2,0.54414746]
[1717744651216,0.00523247,3823.5,3823.3,1.36313364]
[1717744651416,0.00523247,3823.5,3823.4,0.06093055]
[1717744651776,0.00523247,3823.5,3823.1,0.54414746]
[1717744651998,0.00523247,3823.5,3823.2,1.56058164]
[1717744652198,0.00523247,3823.5,3823.3,1.36316103]
[1717744652703,0.00523247,3823.5,3823.4,1.42409158]
[1717744656195,0.00523247,3823.5,3823.4,1.96823904]
[1717744657332,0.00523247,3823.5,3823.4,1.42409158]
[1717744657639,0.00523247,3823.5,3823.4,1.77165913]
[1717744657842,0.00523247,3823.5,3823.4,1.42409158]
[1717744658708,0.00523247,3823.5,3823.4,4.06234809]
[1717744660353,0.00523247,3823.5,3823.4,4.05931422]
[1717744668664,0.00523247,3823.5,3823.4,4.02159496]
[1717744668835,0.00523247,3823.5,3823.4,5.67749496]
[1717744669018,5.70069,3824.6,3823.4,6.45749496]
[1717744669352,5.70069,3824.6,3824.1,0.54479563]
[1717744669555,5.70069,3824.6,3824.2,1.36316103]
[1717744669727,5.70069,3824.6,3824.2,0.06070783]
[1717744669933,5.70069,3824.6,3824.3,1.36291337]
[1717744670257,5.70069,3824.6,3824.1,0.54479563]
[1717744670416,5.70069,3824.6,3824.4,0.06070783]
[1717744670612,5.70069,3824.6,3824.1,0.54479563]
[1717744670857,5.70069,3824.6,3824.2,1.42362283]
[1717744671015,5.70069,3824.6,3824.2,0.06070783]
[1717744671220,0.78,3824.4,3824.2,0.06070783]
[1717744671515,4.92069,3824.6,3824.2,0.06070783]
[1717744671516,5.70069,3824.6,3824.2,0.06070783]
[1717744672754,2.61481,3824.4,3823.9,0.54479563]
[1717744673055,3.39481,3824.4,3824.0,1.90776891]
[1717744673240,3.39481,3824.4,3824.1,1.36297328]
[1717744673418,3.39481,3824.4,3824.0,0.06070783]
[1717744673729,3.39481,3824.4,3824.1,1.36302142]
[1717744673917,3.39481,3824.4,3824.0,0.06070783]
[1717744674117,3.39481,3824.4,3824.1,1.36301689]
[1717744674352,3.39481,3824.4,3824.1,0.06070783]
[1717744675264,3.39481,3824.4,3824.2,1.36300334]
[1717744675468,0.78,3824.3,3824.1,0.06070783]
[1717744675641,2.4488,3824.1,3824.0,0.54479563]
[1717744675847,3.2288,3824.1,3824.0,1.36300533]
[1717744676046,2.4488,3824.1,3823.8,0.54479563]
[1717744676251,2.4488,3824.1,3823.9,1.36309081]
[1717744676592,2.4488,3824.1,3824.0,1.36309081]
[1717744676726,2.4488,3824.1,3824.0,1.36304053]
[1717744677377,2.4488,3824.1,3824.0,1.90783616]
[1717744677982,2.4488,3824.1,3824.0,1.36304053]
[1717744678467,3.2288,3824.1,3824.0,1.36304053]
[1717744678676,2.4488,3824.1,3824.0,1.36304053]
[1717744679173,2.61492,3824.2,3824.0,1.36304053]
[1717744679344,2.61492,3824.2,3824.1,3.99748653]
[1717744680411,2.61492,3824.2,3824.1,3.18029308]
[1717744681476,2.61492,3824.2,3824.1,3.18019]
[1717744682480,2.61492,3824.2,3824.1,4.26978127]
[1717744682859,2.61492,3824.2,3824.1,4.26978414]
[1717744685789,2.61492,3824.2,3824.1,2.90684382]
[1717744685997,2.61492,3824.2,3824.1,4.26978147]
[1717744686347,0.8056538,3824.5,3824.1,3.1801902]
[1717744686554,0.8056538,3824.5,3824.0,1.3652306]
[1717744686555,0.0256538,3824.5,3824.4,0.78]
[1717744686760,0.0256538,3824.5,3824.4,3.1801902]
[1717744687187,0.0256538,3824.5,3824.4,5.45160067]
[1717744687387,0.0256538,3824.5,3824.4,4.54487334]
[1717744687792,0.0256538,3824.5,3824.4,3.1801902]
[1717744687965,0.0256538,3824.5,3824.4,4.27208551]
[1717744688454,0.0256538,3824.5,3824.4,3.1801902]
[1717744688802,0.0256538,3824.5,3824.4,3.24073426]
[1717744688958,0.0256538,3824.5,3824.4,4.059655]
[1717744689393,0.0256538,3824.5,3824.4,1.42348171]
[1717744690792,2.8522538,3824.5,3824.4,1.96956155]
[1717744690981,2.8522538,3824.5,3824.4,1.42348171]
[1717744691182,2.8522538,3824.5,3824.4,1.96956155]
[1717744692026,2.8522538,3824.5,3824.4,1.42348171]
[1717744692523,2.8522538,3824.5,3824.4,1.96956155]
[1717744693015,2.8522538,3824.5,3824.4,1.42348171]
[1717744693423,2.8522538,3824.5,3824.4,1.96975607]
[1717744693628,2.8522538,3824.5,3824.4,1.96985443]
[1717744694799,2.8522538,3824.5,3824.4,1.42358007]
[1717744695294,2.8522538,3824.5,3824.4,1.96985443]
[1717744695511,3.45546344,3824.5,3824.4,1.96985443]
[1717744695696,3.45546344,3824.5,3824.4,1.42358007]
[1717744695887,3.45546344,3824.5,3824.4,0.06054406]
[1717744696313,4.90328,3824.4,3824.2,0.54627436]
[1717744696650,0.55,3824.3,3824.2,0.54627436]
[1717744696790,0.55,3824.3,3824.2,1.90941261]
[1717744700708,0.55,3824.3,3824.2,1.36313825]
[1717744702549,2.61478,3824.4,3824.2,1.36313825]
[1717744703047,2.61478,3824.4,3824.3,3.99938742]
[1717744703447,2.61478,3824.4,3824.3,3.18046668]
[1717744703649,2.61478,3824.4,3824.3,3.23707858]
[1717744704341,2.61478,3824.4,3824.3,3.23692839]
[1717744705247,5.01488,3824.4,3824.3,4.05672997]
[1717744705848,2.61478,3824.4,3824.3,4.05672997]
[1717744706349,2.61478,3824.4,3824.3,3.23692839]
[1717744706676,2.61478,3824.4,3824.3,4.05678634]
[1717744708557,2.61478,3824.4,3824.3,3.23692839]
[1717744709954,3.39478,3824.4,3824.3,3.23692839]
[1717744710581,2.61478,3824.4,3824.3,3.23692839]
[1717744710724,3.39478,3824.4,3824.3,4.3288237]
[1717744711458,2.61478,3824.4,3824.3,4.3288237]
[1717744711754,3.39478,3824.4,3824.3,4.3288237]
[1717744712126,2.61478,3824.4,3824.3,4.3288237]
[1717744712334,3.39478,3824.4,3824.3,4.3288237]
[1717744712518,2.61478,3824.4,3824.3,4.3288237]
[1717744712718,3.39478,3824.4,3824.3,4.3288237]
[1717744716747,3.39478,3824.4,3824.3,4.32881408]
[1717744717645,6.84378201,3824.4,3824.3,3.23691877]
[1717744718577,6.06378201,3824.4,3824.3,3.23691877]
[1717744718785,6.84378201,3824.4,3824.3,3.23691877]
[1717744719073,7.40897888,3824.4,3824.3,1.41959034]
[1717744719867,6.84378201,3824.4,3824.3,4.05733844]
[1717744720231,7.40897776,3824.4,3824.3,4.05733844]
[1717744720576,6.84378201,3824.4,3824.3,4.05733844]
[1717744720874,7.40896839,3824.4,3824.3,4.05743687]
[1717744721650,7.40896839,3824.4,3824.3,3.23714632]
[1717744722371,6.84378201,3824.4,3824.3,3.23714632]
[1717744723657,6.84378201,3824.4,3824.3,4.32904163]
[1717744724564,6.84378201,3824.4,3824.3,3.23714632]
[1717744724745,6.84378201,3824.4,3824.3,4.32904163]
[1717744725587,3.94478,3824.4,3824.3,4.32904163]
[1717744725889,6.22818,3824.4,3824.3,4.32904163]
[1717744726474,3.16478,3824.4,3824.3,4.32904163]
[1717744726671,3.94478,3824.4,3824.3,4.32904163]
[1717744727381,3.94478,3824.4,3824.3,3.23714632]
[1717744727876,3.94478,3824.4,3824.3,4.32904163]
[1717744728205,3.94478,3824.4,3824.3,3.23714632]
[1717744728717,3.94478,3824.4,3824.3,4.32904163]
[1717744730508,3.94478,3824.4,3824.3,3.23714632]
[1717744730873,3.94478,3824.4,3824.3,3.23713242]
[1717744732814,3.16478,3824.4,3824.3,3.23713242]
[1717744732983,3.94478,3824.4,3824.3,3.23713242]
[1717744733375,3.94478,3824.4,3824.3,4.32902773]
[1717744735630,3.16478,3824.4,3824.3,4.32902773]
[1717744740437,3.16478,3824.4,3824.3,3.23713242]
[1717744740598,3.94478,3824.4,3824.3,3.23713242]
[1717744742634,3.94478,3824.4,3824.3,4.32902773]
[1717744742954,0.55,3824.4,3824.3,5.50835042]
[1717744743399,0.55,3824.4,3824.3,7.14909827]
[1717744743996,0.5756538,3824.5,3824.3,5.50835042]
[1717744744224,0.5756538,3824.5,3824.4,5.45173852]
[1717744744638,0.5756538,3824.5,3824.4,5.50185983]
[1717744744639,0.0256538,3824.5,3824.4,5.50185983]
[1717744744937,0.5756538,3824.5,3824.4,5.50185983]
[1717744745438,0.5756538,3824.5,3824.4,5.50158203]
[1717744746225,0.8056538,3824.5,3824.4,5.50158203]
[1717744746398,1.3556538,3824.5,3824.4,5.50158203]
[1717744747645,0.5756538,3824.5,3824.4,5.50158203]
[1717744747940,0.0256538,3824.5,3824.4,5.50158203]
[1717744748301,0.0256538,3824.5,3824.4,5.501585]
[1717744749648,0.0256538,3824.5,3824.4,5.50145562]
[1717744752251,0.0256538,3824.5,3824.4,5.50143192]
[1717744754038,0.0256538,3824.5,3824.4,7.79263192]
[1717744754241,8.1670276,3825.4,3824.5,2.61466]
[1717744754446,0.55,3825.3,3825.1,1.09116266]
[1717744754604,0.55,3825.3,3825.2,3.18009261]
[1717744754807,0.0170276,3825.4,3825.2,3.18009261]
[1717744755046,0.0170276,3825.4,3825.2,3.22967461]
[1717744755206,0.0170276,3825.4,3825.3,3.99844642]
[1717744755410,0.0170276,3825.4,3825.3,4.27125527]
[1717744755641,0.0170276,3825.4,3825.3,3.22966929]
[1717744756349,0.0170276,3825.4,3825.3,4.59232784]
[1717744756840,0.0170276,3825.4,3825.3,3.22966929]
[1717744757210,0.0170276,3825.4,3825.3,4.31960399]
[1717744758239,0.0170276,3825.4,3825.3,4.04709405]
[1717744758442,0.5670276,3825.4,3825.3,1.41221174]
[1717744758843,0.93430036,3825.4,3825.3,1.41221174]
[1717744759218,0.93430036,3825.4,3825.3,0.04957668]
[1717744759530,2.6142,3825.3,3824.9,0.54503549]
[1717744759730,0.55,3825.2,3825.0,1.36277188]
[1717744759933,2.61417,3825.3,3825.1,1.36277188]
[1717744760135,3.39431,3825.1,3825.0,0.0495156]
[1717744760351,3.39431,3825.1,3824.9,0.54503549]
[1717744760510,3.39431,3825.1,3825.0,1.36277851]
[1717744760712,6.28681,3825.1,3825.0,1.41229411]
[1717744760911,6.71554376,3825.1,3825.0,0.0495156]
[1717744761138,6.71554376,3825.1,3825.0,1.36279746]
[1717744761452,6.71554376,3825.1,3825.0,1.41231306]
[1717744761852,6.71554376,3825.1,3825.0,0.0495156]
[1717744762419,6.71554376,3825.1,3824.8,0.54503549]
[1717744762655,3.39444,3824.9,3824.8,0.54503549]
[1717744762857,3.94444,3824.9,3824.8,1.90784338]
[1717744763755,3.94444,3824.9,3824.8,1.95590784]
[1717744764964,4.61600738,3824.9,3824.8,1.95590784]
[1717744765149,4.61600738,3824.9,3824.8,1.41087235]
[1717744766966,6.87010738,3824.9,3824.8,0.04806446]
[1717744767271,2.61471,3824.6,3824.4,0.54503549]
[1717744767478,1.33,3824.5,3824.4,0.54503549]
[1717744767779,1.33,3824.5,3824.4,1.36300341]
[1717744768072,1.33,3824.5,3824.4,1.95479617]
[1717744768073,0.55,3824.5,3824.4,1.95479617]
[1717744768580,0.55,3824.5,3824.4,4.31654074]
[1717744769125,0.55,3824.5,3824.4,3.22660604]
[1717744769527,0.55,3824.5,3824.4,3.22666463]
[1717744769961,0.55,3824.5,3824.4,4.31659933]
[1717744770662,2.61471,3824.6,3824.4,4.31659933]
[1717744770830,2.61471,3824.6,3824.5,3.17990736]
[1717744771030,3.16471,3824.6,3824.5,3.17990736]
[1717744771431,3.16471,3824.6,3824.5,3.22666463]
[1717744771631,2.61438,3825.0,3824.5,3.22666463]
[1717744771851,0.55,3824.9,3824.8,0.81825319]
[1717744772067,0.55,3824.9,3824.8,3.99816055]
[1717744772431,0.55,3824.9,3824.8,4.04491782]
[1717744772970,0.55,3824.9,3824.8,4.04479625]
[1717744773866,7.3870276,3825.4,3824.8,6.61417776]
[1717744773867,0.78,3825.2,3824.8,6.61417776]
[1717744774073,0.78,3825.2,3825.1,0.54537656]
[1717744774290,0.78,3825.2,3825.1,1.36272935]
[1717744774569,0.78,3825.2,3825.1,1.95488058]
[1717744775738,1.33,3825.2,3825.1,1.95488058]
[1717744776078,1.33,3825.2,3825.1,1.40948662]
[1717744776374,1.33,3825.2,3825.1,1.95488058]
[1717744776670,1.33,3825.2,3825.1,1.40948662]
[1717744777655,1.33,3825.2,3825.1,1.95488059]
[1717744778958,1.33,3825.2,3825.1,1.40948663]
[1717744781743,1.33,3825.2,3825.1,1.95488059]
[1717744781952,1.33,3825.2,3825.1,1.40948663]
[1717744782334,1.33,3825.2,3825.1,1.95488059]
[1717744786466,3.7992,3825.2,3825.1,1.95488059]
[1717744786978,4.44223376,3825.2,3825.1,1.95488059]
[1717744787438,4.44223376,3825.2,3825.1,1.40948663]
[1717744787634,4.44223376,3825.2,3825.1,1.95488059]
[1717744789673,4.44223376,3825.2,3825.1,1.40948663]
[1717744791382,4.44223376,3825.2,3825.1,1.4096514]
[1717744791772,4.44223376,3825.2,3825.1,1.40965143]
[1717744791947,4.44223376,3825.2,3825.1,0.04675727]
[1717744792146,2.61431,3825.1,3824.9,0.54539396]
[1717744792362,1.33,3825.0,3824.9,0.54539396]
[1717744792651,1.33,3825.0,3824.9,1.90829281]
[1717744793688,1.33,3825.0,3824.9,1.95016757]
[1717744794390,0.55,3825.0,3824.9,1.95016757]
[1717744794684,1.33,3825.0,3824.9,1.95016757]
[1717744794889,2.19468967,3825.0,3824.9,1.95016757]
[1717744795248,2.19468967,3825.0,3824.9,1.40477361]
[1717744796610,4.63218967,3825.0,3824.9,1.40477361]
[1717744796768,5.19726676,3825.0,3824.9,1.40477361]
[1717744798102,1.97976676,3825.0,3824.9,1.40477361]
[1717744798310,1.33,3825.0,3824.9,1.95016757]
[1717744801002,1.33,3825.0,3824.9,1.95014918]
[1717744801805,0.78,3825.0,3824.9,1.95014918]
[1717744802006,2.61431,3825.1,3824.9,1.95014918]
[1717744802300,0.78,3825.0,3824.9,0.04187476]
[1717744802601,0.78,3825.0,3824.9,3.17973911]
[1717744802803,0.78,3825.0,3824.9,3.22031024]
[1717744803011,2.61431,3825.1,3824.9,4.31024494]
[1717744803225,2.61431,3825.1,3825.0,3.17971003]
[1717744803380,3.94431,3825.1,3825.0,4.26964473]
[1717744803586,3.16431,3825.1,3825.0,4.31021586]
[1717744803894,3.94431,3825.1,3825.0,4.31021586]
[1717744804095,3.94431,3825.1,3825.0,2.94748299]
[1717744804293,3.94431,3825.1,3825.0,4.31022277]
[1717744806323,3.16431,3825.1,3825.0,4.31022277]
[1717744806635,3.16431,3825.1,3825.0,5.60238807]
[1717744806636,3.94431,3825.1,3825.0,5.60238807]
[1717744807151,0.0170276,3825.4,3825.0,6.96800864]
[1717744807443,0.78,3825.1,3825.0,3.7882917]
[1717744807650,0.78,3825.1,3825.0,6.9678572]
[1717744812745,0.78,3825.1,3825.0,6.96807603]
[1717744814021,0.78,3825.1,3825.0,4.58597603]
[1717744814448,0.78,3825.1,3825.0,4.31305595]
[1717744815843,0.78,3825.1,3825.0,3.22014596]
[1717744816430,0.78,3825.1,3825.0,4.3129063]
[1717744820937,1.33,3825.1,3825.0,4.3129063]
[1717744821370,1.33,3825.1,3825.0,3.22014596]
[1717744821570,1.33,3825.1,3825.0,4.03980484]
[1717744822498,0.55,3825.1,3825.0,4.03980484]
[1717744822684,1.33,3825.1,3825.0,3.22014596]
[1717744823210,1.33,3825.1,3825.0,3.22028914]
[1717744823767,0.55,3825.1,3825.0,3.22028914]
[1717744823968,1.33,3825.1,3825.0,3.22028914]
[1717744824403,1.33,3825.1,3825.0,4.03992773]
[1717744825276,1.33,3825.1,3825.0,4.03993394]
[1717744825694,0.55,3825.1,3825.0,4.03993394]
[1717744825906,1.33,3825.1,3825.0,4.03993394]
[1717744826117,1.33,3825.1,3825.0,3.22028914]
[1717744826422,1.33,3825.1,3825.0,4.03992546]
[1717744829015,1.33,3825.1,3825.0,4.31305051]
[1717744833916,2.61428,3825.2,3825.0,4.31305051]
[1717744834080,3.39428,3825.2,3825.1,4.27247938]
[1717744834535,3.39428,3825.2,3825.1,3.21885942]
[1717744837182,3.39428,3825.2,3825.1,4.31161976]
[1717744837913,3.39428,3825.2,3825.1,3.21885942]
[1717744838296,3.39428,3825.2,3825.1,4.31161976]
[1717744839423,2.61428,3825.2,3825.1,4.31161976]
[1717744839622,3.39428,3825.2,3825.1,4.31161976]
[1717744840406,0.0170276,3825.4,3825.1,4.31161976]
[1717744840607,0.7970276,3825.4,3825.2,4.27243226]
[1717744841019,0.7970276,3825.4,3825.3,4.54577787]
[1717744841225,0.7970276,3825.4,3825.3,4.58491825]
[1717744842730,0.0170276,3825.4,3825.3,4.58491825]
[1717744842902,0.7970276,3825.4,3825.3,3.21885942]
[1717744843245,0.7970276,3825.4,3825.3,4.58491825]
[1717744844143,0.7970276,3825.4,3825.3,3.21885942]
[1717744844442,0.5670276,3825.4,3825.3,3.21885942]
[1717744844637,1.3470276,3825.4,3825.3,3.21885942]
[1717744846414,0.7970276,3825.4,3825.3,3.21885942]
[1717744848530,0.7970276,3825.4,3825.3,4.58491825]
[1717744848916,0.7970276,3825.4,3825.3,3.21885942]
[1717744857458,0.7970276,3825.4,3825.3,4.31099648]
[1717744857826,0.7970276,3825.4,3825.3,3.21885942]
[1717744858020,0.0170276,3825.4,3825.3,3.21885942]
[1717744858259,0.0170276,3825.4,3825.3,5.66325942]
[1717744858422,0.0170276,3825.4,3825.3,3.21885942]
[1717744859059,0.0170276,3825.4,3825.3,4.58379117]
[1717744859255,0.0170276,3825.4,3825.3,4.58348283]
[1717744859817,0.0170276,3825.4,3825.3,3.21856984]
[1717744860465,0.0170276,3825.4,3825.3,4.58348283]
[1717744861865,0.0170276,3825.4,3825.3,3.21856984]
[1717744862474,0.0170276,3825.4,3825.3,4.31049269]
[1717744862867,0.0170276,3825.4,3825.3,3.21856984]
[1717744864467,0.5670276,3825.4,3825.3,4.31046424]
[1717744867946,0.5670276,3825.4,3825.3,3.21856984]
[1717744868783,3.46123036,3825.4,3825.3,4.03765577]
[1717744868944,3.46123036,3825.4,3825.3,1.40167527]
[1717744869340,3.46123036,3825.4,3825.3,0.03914038]
[1717744869896,3.46123036,3825.4,3825.0,0.54622441]
[1717744869897,2.61431,3825.1,3825.0,0.54622441]
[1717744870044,4.53260404,3825.1,3825.0,1.90908916]
[1717744872575,4.53260404,3825.1,3825.0,1.36286475]
[1717744872895,4.53260404,3825.1,3825.0,1.90904913]
[1717744873599,6.91590404,3825.1,3825.0,1.90904913]
[1717744873796,6.91590404,3825.1,3825.0,1.36286475]
[1717744873944,2.61444,3824.9,3824.7,0.54618438]
[1717744874146,2.61444,3824.9,3824.6,0.81908593]
[1717744874147,2.61458,3824.7,3824.5,0.81908593]
[1717744874389,2.61458,3824.7,3824.6,1.36299081]
[1717744874638,3.94458,3824.7,3824.6,1.36299081]
[1717744877378,3.94458,3824.7,3824.6,1.90904585]
[1717744877547,3.94458,3824.7,3824.6,1.90904624]
[1717744877750,6.38618,3824.7,3824.6,1.3629912]
[1717744877997,7.024798,3824.7,3824.6,1.3629912]
[1717744878866,6.244798,3824.7,3824.6,1.3629912]
[1717744879067,7.024798,3824.7,3824.6,1.3629912]
[1717744879266,7.024798,3824.7,3824.4,0.54605504]
[1717744879491,0.55,3824.6,3824.5,1.36304785]
[1717744879694,3.94465,3824.6,3824.5,1.36304785]
[1717744880593,3.16465,3824.6,3824.5,1.36304785]
[1717744880959,3.94465,3824.6,3824.5,1.36304785]
[1717744881994,3.16465,3824.6,3824.5,1.36304785]
[1717744882230,3.94465,3824.6,3824.5,1.36304785]
[1717744883694,3.94465,3824.6,3824.5,1.39854023]
[1717744884106,3.94465,3824.6,3824.5,0.03549238]
[1717744884449,3.94465,3824.6,3824.3,0.54605504]
[1717744884611,0.78,3824.4,3824.3,0.54605504]
[1717744884817,1.33,3824.4,3824.3,1.94458923]
[1717744885235,1.33,3824.4,3824.3,1.39853419]
[1717744888016,1.33,3824.4,3824.3,1.39856019]
[1717744890045,0.55,3824.4,3824.3,1.39856019]
[1717744890202,1.33,3824.4,3824.3,1.39856019]
[1717744894710,1.33,3824.4,3824.3,0.03549238]
[1717744895107,2.61485,3824.3,3824.1,0.54605504]
[1717744895417,0.78,3824.2,3824.1,0.54605504]
[1717744895621,0.78,3824.2,3824.1,1.90912867]